bitfinex-derivatives/quotes_SOLF0:USTF0_20250716
["timestamp","ask_amount","ask_price","bid_price","bid_amount"]
[1752705104285,3.3,175.34,175.32,6.31380355]
[1752705104477,3.3,175.33,175.32,6.31380355]
[1752705104880,3.3,175.33,175.32,3.1]
[1752705105281,3.3,175.33,175.32,8.8007]
[1752705105884,3.3,175.33,175.32,3.1]
[1752705106078,3.3,175.33,175.31,3.21380355]
[1752705106477,3.3,175.33,175.3,3.1]
[1752705106675,3.3,175.36,175.3,3.1]
[1752705106982,3.3,175.36,175.3,8.8013]
[1752705107382,3.3,175.36,175.31,3.21380355]
[1752705107585,3.3,175.36,175.32,3.1]
[1752705107788,3.21380355,175.4,175.31,3.21380355]
[1752705108089,3.3,175.39,175.32,3.1]
[1752705108286,5.6995,175.36,175.32,8.8005]
[1752705108486,3.3,175.35,175.33,3.1]
[1752705109386,3.3,175.34,175.33,3.1]
[1752705110481,3.3,175.34,175.32,5.7005]
[1752705110877,3.21380355,175.36,175.29,3.1]
[1752705111079,3.3,175.33,175.25,6.31380355]
[1752705111290,3.3,175.33,175.26,3.1]
[1752705111589,5.7016,175.3,175.26,8.8024]
[1752705111791,3.3,175.29,175.27,3.1]
[1752705113090,3.3,175.28,175.27,3.1]
[1752705114690,5.7016,175.3,175.27,8.8023]
[1752705114892,3.3,175.29,175.28,3.1]
[1752705116386,5.7016,175.3,175.26,8.91630355]
[1752705116586,3.3,175.28,175.27,3.1]
[1752705118389,6.51380355,175.34,175.27,3.1]
[1752705118596,3.3,175.33,175.27,3.1]
[1752705118893,5.7017,175.29,175.27,3.1]
[1752705119088,3.3,175.28,175.27,3.1]
[1752705120783,3.3,175.28,175.25,3.21380355]
[1752705120989,5.7025,175.27,175.23,3.1]
[1752705121190,3.3,175.25,175.24,3.1]
[1752705121791,5.7025,175.27,175.22,3.21380355]
[1752705122094,3.3,175.26,175.25,3.1]
[1752705123893,9.0028,175.26,175.24,3.21380355]
[1752705124092,3.17,175.25,175.24,6.42380355]
[1752705124295,3.17,175.27,175.24,6.42380355]
[1752705124498,3.17,175.26,175.25,3.21]
[1752705124798,3.17,175.27,175.25,3.21]
[1752705124988,3.17,175.26,175.25,3.21]
[1752705125189,3.17,175.25,175.24,12.12710355]
[1752705125695,3.17,175.25,175.22,6.42380355]
[1752705126196,5.7035,175.24,175.2,12.12810355]
[1752705126386,3.17,175.22,175.2,3.21]
[1752705126589,3.17,175.21,175.2,6.42380355]
[1752705127293,3.21380355,175.26,175.19,167.38]
[1752705127496,3.17,175.2,175.19,167.38]
[1752705127690,3.17,175.2,175.19,170.59]
[1752705127885,3.17,175.22,175.18,3.21380355]
[1752705128091,3.17,175.22,175.2,3.21]
[1752705128299,3.17,175.22,175.21,3.21]
[1752705129195,3.17,175.21,175.2,3.21]
[1752705130802,3.21380355,175.32,175.21,3.21]
[1752705130998,3.17,175.26,175.23,3.21380355]
[1752705131199,3.17,175.26,175.24,3.21]
[1752705131706,3.17,175.25,175.24,3.21]
[1752705132005,3.17,175.24,175.23,6.42380355]
[1752705132701,3.17,175.31,175.2,167.4]
[1752705133003,3.17,175.29,175.22,3.21380355]
[1752705133603,3.17,175.24,175.23,3.21]
[1752705133797,3.17,175.3,175.23,3.21]
[1752705135201,3.17,175.24,175.23,3.21]
[1752705137405,5.7033,175.24,175.22,3.21380355]
[1752705137607,3.17,175.23,175.22,6.42380355]
[1752705138616,5.7031,175.25,175.22,6.42380355]
[1752705138617,3.17,175.24,175.23,3.21]
[1752705139514,3.17,175.23,175.22,3.21380355]
[1752705139717,3.17,175.23,175.16,82.14837138]
[1752705139912,8.8738,175.23,175.21,3.21380355]
[1752705140113,3.17,175.22,175.21,3.21380355]
[1752705140417,3.17,175.25,175.17,3.21]
[1752705140606,3.17,175.25,175.17,6.42380355]
[1752705141011,3.17,175.19,175.17,3.21380355]
[1752705141225,5.7048,175.2,175.17,3.21380355]
[1752705141412,3.17,175.18,175.17,3.21380355]
[1752705141612,3.17,175.18,175.17,6.42380355]
[1752705141808,3.17,175.23,175.16,85.35837138]
[1752705142014,3.17,175.23,175.16,88.57217493]
[1752705142317,5.7049,175.19,175.16,94.27797493]
[1752705142523,3.17,175.18,175.16,94.27797493]
[1752705143818,3.17,175.18,175.16,91.06797493]
[1752705144123,3.17,175.18,175.17,3.21]
[1752705144318,5.7039,175.23,175.17,3.21]
[1752705144624,3.17,175.28,175.22,3.21380355]
[1752705144824,3.17,175.26,175.19,3.21380355]
[1752705145219,3.17,175.26,175.19,8.91870355]
[1752705145821,5.7038,175.23,175.19,8.91870355]
[1752705146017,3.17,175.21,175.2,3.21]
[1752705146721,3.17,175.21,175.18,170.61]
[1752705147225,3.17,175.21,175.19,5.7049]
[1752705147424,3.17,175.21,175.18,170.61]
[1752705147726,3.17,175.2,175.19,12.12860355]
[1752705148127,3.17,175.2,175.18,167.4]
[1752705148332,3.17,175.2,175.19,3.21380355]
[1752705148528,3.17,175.2,175.19,8.91870355]
[1752705149419,3.17,175.2,175.18,173.1052]
[1752705149727,3.17,175.19,175.18,179.52900355]
[1752705150132,3.17,175.19,175.18,176.31900355]
[1752705150825,3.17,175.19,175.18,3.21380355]
[1752705153832,8.875,175.19,175.16,91.06787493]
[1752705154026,5.705,175.19,175.16,91.06787493]
[1752705154235,3.35,175.17,175.16,94.31787493]
[1752705155136,3.35,175.17,175.16,82.14837138]
[1752705155331,3.35,175.17,175.14,3.21380355]
[1752705155531,9.0558,175.17,175.14,3.21380355]
[1752705155838,3.35,175.16,175.13,12.17050355]
[1752705156436,9.0561,175.16,175.13,3.21380355]
[1752705156632,3.35,175.15,175.13,3.21380355]
[1752705157332,3.35,175.15,175.13,8.92060355]
[1752705157523,3.35,175.14,175.13,12.17060355]
[1752705158539,3.35,175.15,175.14,3.25]
[1752705158837,3.35,175.2,175.14,3.25]
[1752705159040,3.35,175.17,175.16,3.25]
[1752705161244,3.35,175.16,175.15,12.16990355]
[1752705161540,3.35,175.16,175.13,6.46380355]
[1752705161844,3.35,175.16,175.13,3.21380355]
[1752705162636,3.35,175.16,175.13,8.92060355]
[1752705164947,9.0559,175.16,175.13,8.92060355]
[1752705165148,3.35,175.15,175.13,3.21380355]
[1752705166150,9.0563,175.15,175.13,3.21380355]
[1752705166340,3.35,175.14,175.12,167.4]
[1752705166543,9.56268309,175.18,175.12,170.65]
[1752705166842,3.35,175.13,175.12,8.957]
[1752705167344,3.35,175.13,175.11,8.92120355]
[1752705167651,3.35,175.12,175.11,12.17120355]
[1752705168646,9.56268309,175.18,175.11,8.92120355]
[1752705168848,3.35,175.13,175.12,3.25]
[1752705169144,3.35,175.13,175.11,8.92120355]
[1752705169346,3.35,175.12,175.11,12.17120355]
[1752705169550,3.35,175.12,175.11,3.21380355]
[1752705169853,3.35,175.12,175.11,6.46380355]
[1752705170249,3.35,175.12,175.11,12.17130355]
[1752705170743,3.35,175.12,175.11,6.46380355]
[1752705171444,3.35,175.12,175.11,12.17130355]
[1752705172044,3.35,175.12,175.11,6.46380355]
[1752705172739,12.91268309,175.16,175.09,170.59380355]
[1752705172943,9.56268309,175.15,175.09,3.21380355]
[1752705173139,3.35,175.14,175.09,3.21380355]
[1752705173344,3.35,175.14,175.08,88.11034315]
[1752705173538,3.35,175.13,175.07,8.92260355]
[1752705173744,3.35,175.13,175.07,6.46380355]
[1752705174148,3.35,175.11,175.08,3.25]
[1752705174649,3.35,175.1,175.09,3.25]
[1752705175245,3.35,175.14,175.08,3.25]
[1752705175450,3.35,175.14,175.06,170.63]
[1752705175952,3.35,175.14,175.06,173.84380355]
[1752705176153,12.77648664,175.13,175.03,3.25]
[1752705176346,9.56268309,175.12,175.04,3.21380355]
[1752705176652,5.7085,175.08,175.04,8.92340355]
[1752705176852,3.35,175.06,175.05,3.25]
[1752705177047,3.35,175.06,175.05,6.46380355]
[1752705177550,3.35,175.06,175.03,3.25]
[1752705178045,3.35,175.06,175.04,3.21380355]
[1752705178646,3.35,175.06,175.02,3.21380355]
[1752705178846,3.35,175.06,175.01,167.38]
[1752705179047,3.35,175.03,175.01,3.21380355]
[1752705179451,5.7101,175.04,175.01,3.21380355]
[1752705179655,3.35,175.02,175.01,6.46380355]
[1752705180353,3.35,175.05,175.01,3.21380355]
[1752705180652,3.35,175.05,175.04,3.25]
[1752705181154,3.35,175.05,175.03,3.21380355]
[1752705181355,9.0598,175.04,175.01,3.21380355]
[1752705181554,5.7098,175.04,175.01,3.21380355]
[1752705181755,3.35,175.02,175.01,6.46380355]
[1752705181953,3.35,175.05,175.02,3.25]
[1752705182149,9.56268309,175.06,175.03,3.25]
[1752705182351,3.35,175.05,175.03,3.21380355]
[1752705182550,3.35,175.04,175.03,3.21380355]
[1752705182755,3.35,175.04,175.03,6.46380355]
[1752705183852,3.25,175.06,175.04,5.7098]
[1752705184051,3.25,175.06,175.05,6.40380355]
[1752705184453,3.25,175.06,175.05,3.21380355]
[1752705186759,3.25,175.05,175.02,6.40380355]
[1752705187060,3.25,175.05,175.01,6.40380355]
[1752705187953,3.25,175.03,175.01,6.40380355]
[1752705188153,9.56268309,175.07,175.01,6.40380355]
[1752705188352,3.25,175.02,175.01,3.19]
[1752705188859,3.25,175.02,175.01,6.40380355]
[1752705189157,3.25,175.02,175.01,3.21380355]
[1752705189656,3.25,175.02,174.97,5.7118]
[1752705189861,3.25,175.02,175.01,6.40380355]
[1752705190362,3.25,175.03,175.02,3.19]
[1752705190954,3.25,175.07,175.02,3.19]
[1752705191259,3.25,175.06,175.01,3.21380355]
[1752705191460,3.25,175.03,174.95,168.4140727]
[1752705191765,3.25,175.02,174.98,3.21380355]
[1752705191963,3.25,174.99,174.95,3.19]
[1752705192260,9.56268309,175.03,174.9,0.99435674]
[1752705192261,12.81268309,174.98,174.9,0.99435674]
[1752705192450,12.77648664,174.98,174.9,9.92226029]
[1752705192655,3.25,174.97,174.86,3.19]
[1752705192849,5.713,174.95,174.9,12.11800355]
[1752705193056,3.25,174.93,174.91,3.19]
[1752705193268,9.56268309,174.98,174.91,3.19]
[1752705193459,3.25,174.96,174.94,3.19]
[1752705193861,3.25,174.96,174.92,8.92720355]
[1752705194058,3.25,174.94,174.91,3.19]
[1752705194260,3.25,174.93,174.91,3.19]
[1752705194567,3.25,174.92,174.91,3.21380355]
[1752705194863,3.25,174.92,174.9,3.19]
[1752705195067,3.25,174.92,174.89,3.21380355]
[1752705195261,3.25,174.92,174.87,0.99452724]
[1752705195459,3.25,174.91,174.89,6.40380355]
[1752705195656,3.25,174.91,174.9,3.19]
[1752705195854,3.25,174.92,174.9,3.19]
[1752705196052,3.25,174.92,174.91,3.19]
[1752705196468,3.25,174.92,174.91,6.40380355]
[1752705196867,3.25,174.93,174.92,3.19]
[1752705197563,5.7131,174.94,174.93,3.19]
[1752705197765,8.9631,174.94,174.93,3.19]
[1752705198262,5.7134,174.93,174.9,5.7143]
[1752705198467,3.25,174.95,174.92,3.19]
[1752705198668,3.25,174.94,174.91,3.19]
[1752705198965,8.9636,174.93,174.92,3.19]
[1752705199269,3.25,174.99,174.92,3.19]
[1752705199470,8.9628,174.95,174.93,6.40380355]
[1752705199766,3.25,174.94,174.88,6.40380355]
[1752705199968,3.25,174.91,174.89,3.19]
[1752705200158,3.25,174.91,174.9,6.40380355]
[1752705200663,3.25,174.91,174.88,3.19]
[1752705200867,3.25,174.95,174.88,6.40380355]
[1752705201168,5.7147,174.89,174.88,3.21380355]
[1752705201369,8.9647,174.89,174.88,3.21380355]
[1752705201663,3.21380355,174.96,174.87,3.19]
[1752705201854,3.25,174.93,174.86,3.21380355]
[1752705202772,5.7153,174.88,174.86,3.21380355]
[1752705202973,3.25,174.87,174.86,6.40380355]
[1752705203266,8.9653,174.88,174.87,3.19]
[1752705203863,3.25,174.92,174.85,6.40380355]
[1752705204073,3.25,174.92,174.86,3.21380355]
[1752705204370,3.25,174.92,174.86,6.40380355]
[1752705205160,3.25,174.92,174.86,3.19]
[1752705205372,5.7152,174.88,174.86,6.40380355]
[1752705205665,8.9652,174.88,174.87,3.19]
[1752705205866,8.9651,174.88,174.86,3.21380355]
[1752705206068,3.25,174.93,174.86,3.21380355]
[1752705206267,3.25,174.91,174.83,3.21380355]
[1752705206469,3.21380355,174.9,174.8,3.19]
[1752705206671,3.25,174.89,174.81,3.21380355]
[1752705206867,3.25,174.89,174.81,6.40380355]
[1752705207172,3.25,174.84,174.81,3.21380355]
[1752705207370,3.25,174.83,174.81,6.40380355]
[1752705207668,3.21380355,174.88,174.74,168.54]
[1752705207864,3.25,174.81,174.8,6.40380355]
[1752705208375,3.25,174.81,174.8,3.21380355]
[1752705208558,3.25,174.81,174.79,3.21380355]
[1752705208764,3.25,174.87,174.79,3.21380355]
[1752705209160,3.25,174.87,174.79,6.40380355]
[1752705209569,3.25,174.87,174.8,3.19]
[1752705209772,3.25,174.84,174.8,3.21380355]
[1752705210169,3.25,174.84,174.8,6.40380355]
[1752705211063,3.25,174.84,174.81,3.19]
[1752705211770,3.25,174.86,174.82,3.21380355]
[1752705211972,3.25,174.86,174.85,3.19]
[1752705212281,3.25,174.9,174.84,3.21380355]
[1752705212571,3.25,174.9,174.87,3.19]
[1752705213373,3.21380355,174.94,174.86,3.21380355]
[1752705213671,3.35,174.89,174.86,3.21380355]
[1752705213867,3.35,174.88,174.87,3.35]
[1752705214069,3.35,174.91,174.87,3.35]
[1752705214265,3.35,174.91,174.78,89.92254702]
[1752705214266,3.35,174.98,174.9,3.21380355]
[1752705214470,3.35,174.98,174.9,8.92810355]
[1752705214670,3.35,174.98,174.89,3.35]
[1752705214869,3.35,174.98,174.89,6.56380355]
[1752705215371,3.35,174.93,174.9,9.0644]
[1752705215573,3.35,174.92,174.9,9.0644]
[1752705215773,3.35,174.92,174.91,5.7141]
[1752705216177,3.35,174.92,174.9,9.0643]
[1752705216886,5.7127,174.96,174.92,3.35]
[1752705217174,3.35,174.98,174.94,3.35]
[1752705217375,5.7123,174.97,174.94,3.35]
[1752705217576,3.35,174.95,174.94,3.35]
[1752705218379,3.35,174.95,174.93,3.21380355]
[1752705218576,3.35,174.95,174.93,6.56380355]
[1752705219676,3.35,175.01,174.93,3.21380355]
[1752705219871,3.35,174.99,174.91,3.21380355]
[1752705220076,135.97372361,175.03,174.82,168.5]
[1752705220077,3.35,174.97,174.89,6.56380355]
[1752705220574,5.7139,174.92,174.89,6.56380355]
[1752705220874,3.35,174.9,174.89,6.56380355]
[1752705223174,3.35,174.91,174.9,3.35]
[1752705223984,3.35,174.9,174.89,6.56380355]
[1752705224781,3.35,174.91,174.9,3.35]
[1752705225281,3.35,174.91,174.89,8.92850355]
[1752705225580,3.35,174.9,174.89,6.56380355]
[1752705225979,3.35,174.9,174.89,3.21380355]
[1752705226377,3.35,174.9,174.87,3.35]
[1752705226585,5.7146,174.9,174.87,3.21380355]
[1752705227180,3.35,174.88,174.87,3.21380355]
[1752705229182,3.35,174.92,174.85,6.56380355]
[1752705229383,3.35,174.91,174.85,3.21380355]
[1752705229576,5.7163,174.84,174.83,3.21380355]
[1752705229770,5.7163,174.84,174.81,3.35]
[1752705229771,9.56268309,174.88,174.81,3.35]
[1752705230073,3.35,174.87,174.8,3.21380355]
[1752705230273,9.56268309,174.86,174.8,3.21380355]
[1752705230482,3.35,174.85,174.8,3.21380355]
[1752705230779,9.068,174.79,174.78,93.27254702]
[1752705230984,9.068,174.79,174.78,86.70874347]
[1752705231892,9.068,174.79,174.78,90.05874347]
[1752705232072,3.35,174.84,174.79,3.35]
[1752705232385,3.35,174.83,174.78,89.92254702]
[1752705232583,3.35,174.83,174.78,93.27254702]
[1752705233177,9.068,174.79,174.78,93.27254702]
[1752705233881,9.068,174.79,174.78,90.05874347]
[1752705235080,9.068,174.79,174.78,86.70874347]
[1752705240783,5.718,174.79,174.78,90.05874347]
[1752705241176,11.4295,174.89,174.78,90.05874347]
[1752705241177,5.7178,174.8,174.78,90.05874347]
[1752705241376,3.35,174.85,174.81,3.35]
[1752705241574,3.35,174.87,174.84,3.35]
[1752705241778,3.35,174.86,174.85,3.35]
[1752705242082,5.7157,174.86,174.85,3.35]
[1752705242283,6.56380355,174.9,174.83,3.35]
[1752705242483,5.7179,174.8,174.79,6.56380355]
[1752705242789,5.7179,174.8,174.79,3.35]
[1752705242988,9.0679,174.8,174.79,3.35]
[1752705243179,5.718,174.79,174.78,89.78874347]
[1752705243784,8.968,174.79,174.78,86.70874347]
[1752705244090,8.968,174.79,174.78,89.78874347]
[1752705244686,8.968,174.79,174.78,86.70874347]
[1752705246280,8.968,174.79,174.78,89.78874347]
[1752705247085,5.718,174.79,174.78,89.78874347]
[1752705248185,8.968,174.79,174.78,86.70874347]
[1752705248491,8.968,174.79,174.78,89.78874347]
[1752705249193,5.718,174.79,174.78,89.78874347]
[1752705249490,8.968,174.79,174.78,89.78874347]
[1752705249693,8.968,174.79,174.78,86.70874347]
[1752705250496,8.968,174.79,174.78,89.78874347]
[1752705250685,8.968,174.79,174.78,86.70874347]
[1752705250992,18.53068309,174.79,174.78,86.70874347]
[1752705251183,8.968,174.79,174.78,78.07094347]
[1752705251386,8.9696,174.74,174.73,3.08]
[1752705251795,5.7196,174.74,174.73,3.08]
[1752705253294,5.7194,174.75,174.71,258.91191532]
[1752705253492,5.7194,174.75,174.74,3.08]
[1752705253698,9.55037263,174.79,174.72,3.08]
[1752705253996,3.25,174.77,174.73,3.08]
[1752705254193,3.25,174.8,174.75,3.08]
[1752705254701,9.55037263,174.81,174.75,3.08]
[1752705254702,3.25,174.79,174.75,3.08]
[1752705254996,5.7185,174.78,174.75,3.08]
[1752705255382,9.55037263,174.81,174.74,4.79757229]
[1752705255586,3.25,174.79,174.76,3.08]
[1752705255793,3.25,174.78,174.77,3.08]
[1752705255984,3.25,174.8,174.77,3.08]
[1752705256184,3.25,174.79,174.77,3.08]
[1752705256391,5.7185,174.78,174.77,3.08]
[1752705256791,3.25,174.79,174.77,3.08]
[1752705257298,8.9682,174.79,174.78,3.08]
[1752705257693,3.25,174.83,174.79,3.08]
[1752705257996,3.25,174.82,174.8,4.79757229]
[1752705258201,3.25,174.82,174.81,3.08]
[1752705258496,8.9672,174.82,174.81,3.08]
[1752705258798,3.25,174.84,174.81,3.08]
[1752705259000,3.25,174.83,174.82,3.08]
[1752705259201,8.9668,174.83,174.82,3.08]
[1752705259396,3.25,174.83,174.8,4.79757229]
[1752705259596,8.9671,174.82,174.81,3.08]
[1752705259899,3.25,174.84,174.81,3.08]
[1752705260098,9.55037263,174.86,174.82,4.79757229]
[1752705260398,3.25,174.86,174.84,3.08]
[1752705260592,3.25,174.86,174.82,7.87757229]
[1752705260793,9.55037263,174.87,174.83,3.08]
[1752705260998,3.25,174.85,174.83,3.08]
[1752705261500,3.25,174.84,174.83,3.08]
[1752705262096,8.9666,174.84,174.83,3.08]
[1752705262792,8.9666,174.84,174.82,4.79757229]
[1752705262993,3.25,174.85,174.78,168.42]
[1752705263196,3.25,174.83,174.8,4.79757229]
[1752705263498,5.7172,174.82,174.79,7.87757229]
[1752705263699,5.7172,174.82,174.79,4.79757229]
[1752705263898,3.25,174.83,174.8,3.08]
[1752705264201,3.25,174.83,174.81,3.08]
[1752705264402,12.80037263,174.83,174.81,3.08]
[1752705264701,8.967,174.82,174.81,3.08]
[1752705265100,8.967,174.82,174.81,6.3162698]
[1752705266290,9.55037263,174.83,174.81,3.2362698]
[1752705266492,12.80037263,174.84,174.82,3.08]
[1752705266704,9.55037263,174.84,174.83,6.3162698]
[1752705266888,9.55037263,174.85,174.83,3.2362698]
[1752705267198,9.55037263,174.85,174.84,6.3162698]
[1752705268299,5.716,174.85,174.84,6.3162698]
[1752705268504,3.25,174.87,174.85,3.08]
[1752705270003,12.74102976,174.89,174.85,3.08]
[1752705270207,8.9658,174.86,174.85,3.08]
[1752705270798,9.57979213,174.86,174.85,3.08]
[1752705271004,9.57979213,174.87,174.85,3.08]
[1752705271302,9.57979213,174.87,174.86,6.3162698]
[1752705271505,3.25,174.88,174.86,6.3162698]
[1752705271902,3.25,174.88,174.87,3.08]
[1752705272409,9.58258984,174.88,174.87,3.08]
[1752705273506,9.58258984,174.88,174.86,3.2362698]
[1752705273809,18.6076359,174.87,174.86,6.4262698]
[1752705274103,3.31,174.87,174.86,6.4262698]
[1752705274307,9.5822359,174.87,174.86,6.4262698]
[1752705274905,3.31,174.91,174.87,3.19]
[1752705275104,12.74102976,174.94,174.9,3.2362698]
[1752705275403,5.7141,174.91,174.9,3.2362698]
[1752705275706,3.31,174.91,174.9,3.19]
[1752705275910,3.31,174.91,174.9,6.4262698]
[1752705276309,9.0239,174.92,174.91,3.19]
[1752705276815,3.31,174.91,174.88,3.19]
[1752705277005,3.31,174.9,174.89,6.4262698]
[1752705278208,5.7142,174.91,174.89,6.4262698]
[1752705278409,5.7138,174.92,174.9,3.19]
[1752705278606,5.7138,174.92,174.91,3.19]
[1752705278806,3.31,174.95,174.8,3.19]
[1752705279010,3.31,174.95,174.89,6.4262698]
[1752705279410,3.31,174.95,174.91,6.4262698]
[1752705279609,3.31,174.97,174.93,6.4262698]
[1752705280016,3.31,174.97,174.93,3.2362698]
[1752705281213,3.31,174.97,174.93,6.4262698]
[1752705282216,5.713,174.95,174.93,6.4262698]
[1752705282417,3.31,174.94,174.93,6.4262698]
[1752705282717,3.31,174.94,174.93,3.2362698]
[1752705282915,3.31,174.94,174.91,3.19]
[1752705283113,3.31,174.94,174.93,3.2362698]
[1752705283515,3.31,174.93,174.92,3.2362698]
[1752705284208,3.31,174.93,174.92,6.4262698]
[1752705285407,9.0234,174.93,174.92,3.2362698]
[1752705287016,3.2362698,174.93,174.86,3.2362698]
[1752705287220,3.31,174.92,174.86,3.2362698]
[1752705287515,3.31,174.92,174.85,3.19]
[1752705288114,5.7155,174.87,174.85,3.19]
[1752705288313,3.31,174.9,174.84,3.2362698]
[1752705288921,3.31,174.9,174.82,6.4262698]
[1752705289123,3.2362698,174.89,174.82,6.4262698]
[1752705289324,3.31,174.88,174.8,6.4262698]
[1752705290030,3.31,174.85,174.8,6.4262698]
[1752705290217,3.31,174.85,174.81,3.19]
[1752705290618,5.7166,174.84,174.81,3.19]
[1752705290819,3.31,174.83,174.81,3.19]
[1752705291020,3.31,174.83,174.81,6.4262698]
[1752705292347,3.31,174.85,174.82,3.19]
[1752705292839,3.31,174.84,174.83,3.19]
[1752705295552,9.0258,174.86,174.83,3.19]
[1752705295843,3.31,174.85,174.84,3.19]
[1752705296043,3.31,174.85,174.81,3.2362698]
[1752705296044,9.026,174.85,174.82,3.19]
[1752705296344,3.31,174.84,174.83,3.19]
[1752705296736,5.716,174.85,174.83,3.19]
[1752705296932,12.74102976,174.9,174.84,3.19]
[1752705297139,3.31,174.88,174.86,3.19]
[1752705297339,15.97729956,174.92,174.86,3.19]
[1752705297340,3.31,174.87,174.86,3.19]
[1752705297649,3.31,174.86,174.83,6.4262698]
[1752705297847,3.31,174.85,174.83,6.4262698]
[1752705298846,9.0255,174.87,174.84,3.19]
[1752705299049,3.31,174.86,174.84,3.19]
[1752705299246,3.31,174.85,174.84,3.19]
[1752705300251,3.31,174.85,174.84,6.4262698]
[1752705300548,3.2362698,174.92,174.84,3.19]
[1752705300549,3.31,174.87,174.84,3.19]
[1752705300849,5.7156,174.87,174.85,3.19]
[1752705301051,3.31,174.85,174.84,3.19]
[1752705302548,5.7169,174.83,174.74,237.99492531]
[1752705302749,11.4256,174.95,174.74,237.99492531]
[1752705302750,3.31,174.82,174.79,3.19]
[1752705302937,15.97729956,174.88,174.74,237.99492531]
[1752705302938,3.31,174.85,174.74,237.99492531]
[1752705303245,3.31,174.79,174.78,3.2362698]
[1752705303642,3.31,174.79,174.78,6.5962698]
[1752705303846,5.7178,174.8,174.78,6.5962698]
[1752705304146,9.0278,174.8,174.79,3.36]
[1752705304651,3.31,174.8,174.79,3.36]
[1752705304953,12.74102976,174.85,174.79,3.36]
[1752705304954,3.31,174.85,174.79,3.36]
[1752705305147,3.31,174.85,174.8,6.5962698]
[1752705305545,5.7173,174.81,174.78,6.5962698]
[1752705305850,3.31,174.79,174.78,6.5962698]
[1752705306241,3.31,174.84,174.78,6.5962698]
[1752705306639,3.31,174.8,174.78,3.2362698]
[1752705306950,3.2362698,174.87,174.78,6.5962698]
[1752705306951,3.31,174.84,174.78,6.5962698]
[1752705307354,3.31,174.8,174.79,3.36]
[1752705307555,3.31,174.79,174.78,6.5962698]
[1752705308647,3.31,174.79,174.77,3.2362698]
[1752705308948,3.31,174.78,174.77,6.5962698]
[1752705309149,3.31,174.78,174.74,0.99492531]
[1752705309355,3.31,174.82,174.75,12.3155698]
[1752705309754,3.31,174.82,174.77,3.2362698]
[1752705310059,5.7183,174.78,174.77,6.5962698]
[1752705310252,12.74102976,174.84,174.78,3.36]
[1752705310455,3.31,174.82,174.81,6.5962698]
[1752705310754,3.31,174.82,174.79,3.2362698]
[1752705311259,3.31,174.8,174.79,3.36]
[1752705311555,3.31,174.8,174.79,6.5962698]
[1752705312154,9.0277,174.8,174.79,3.2362698]
[1752705312453,3.31,174.8,174.77,6.5962698]
[1752705312651,3.31,174.79,174.77,6.5962698]
[1752705312855,3.2362698,174.84,174.77,3.2362698]
[1752705313048,3.31,174.83,174.77,3.2362698]
[1752705313659,16.05102976,174.83,174.77,3.2362698]
[1752705313852,3.31,174.82,174.77,3.2362698]
[1752705314056,5.7181,174.79,174.77,6.5962698]
[1752705314259,3.31,174.78,174.77,6.5962698]